bitfinex/quotes_BTCUSD_20241002
["timestamp","ask_amount","ask_price","bid_price","bid_amount"]
[1727852869983,0.1685546,61761.0,61760.0,0.01531575]
[1727852870199,0.1685546,61761.0,61760.0,0.000821]
[1727852870435,0.1685546,61761.0,61760.0,0.002821]
[1727852872797,0.1685546,61761.0,61760.0,0.01731575]
[1727852872990,0.1685546,61761.0,61760.0,0.002821]
[1727852873342,0.21708862,61761.0,61760.0,0.002821]
[1727852873581,0.21708862,61761.0,61760.0,0.01731575]
[1727852873830,0.21708862,61761.0,61760.0,0.002821]
[1727852874365,0.45260411,61761.0,61760.0,0.002821]
[1727852874650,0.61729856,61761.0,61760.0,0.01531575]
[1727852874888,0.49484892,61761.0,61760.0,0.000821]
[1727852875128,0.30786745,61761.0,61760.0,0.000821]
[1727852875371,0.49420745,61761.0,61760.0,0.000821]
[1727852878136,0.51959193,61761.0,61760.0,0.000821]
[1727852878327,0.66533537,61761.0,61760.0,0.000821]
[1727852879877,0.35489748,61761.0,61760.0,0.000821]
[1727852880100,0.22536648,61761.0,61760.0,0.178721]
[1727852880321,0.3225597,61761.0,61760.0,0.32279289]
[1727852880747,0.03902648,61761.0,61760.0,0.19325989]
[1727852880959,0.03902648,61761.0,61760.0,0.19525989]
[1727852881158,0.1362197,61761.0,61760.0,0.19525989]
[1727852881409,0.32323481,61761.0,61760.0,0.32479289]
[1727852881624,0.03902648,61761.0,61760.0,0.19525989]
[1727852881827,0.11192055,61761.0,61760.0,0.47452787]
[1727852882038,0.08762225,61761.0,61760.0,0.47452787]
[1727852882493,0.06223777,61761.0,61760.0,0.19525989]
[1727852882708,0.013642,61761.0,61760.0,0.32479289]
[1727852883141,0.006642,61761.0,61760.0,0.32479289]
[1727852883557,0.006642,61761.0,61760.0,0.32579289]
[1727852883754,0.001642,61761.0,61760.0,0.32579289]
[1727852883958,0.0502343,61761.0,61760.0,0.32579289]
[1727852885200,0.001642,61761.0,61760.0,0.32579289]
[1727852887883,0.0502343,61761.0,61760.0,0.32579289]
[1727852888332,0.001642,61761.0,61760.0,0.32579289]
[1727852889006,0.001642,61761.0,61760.0,0.34879289]
[1727852894378,0.001642,61761.0,61760.0,0.61548734]
[1727852894558,0.001642,61761.0,61760.0,0.62028831]
[1727852894800,0.001642,61761.0,61760.0,0.61928831]
[1727852895225,0.001642,61761.0,61760.0,0.62028831]
[1727852895435,0.001642,61761.0,61760.0,0.61928831]
[1727852896107,0.002642,61761.0,61760.0,0.62228831]
[1727852896328,0.003642,61761.0,61760.0,0.62428831]
[1727852906675,0.001642,61773.0,61760.0,0.62428831]
[1727852906676,0.001642,61773.0,61772.0,0.154508]
[1727852906900,0.001642,61773.0,61772.0,0.33334516]
[1727852907146,0.001642,61773.0,61772.0,0.34420862]
[1727852907826,0.002642,61773.0,61772.0,0.34620862]
[1727852908081,0.002642,61773.0,61772.0,0.14760862]
[1727852908304,0.003642,61773.0,61772.0,0.15060862]
[1727852908529,0.00334521,61773.0,61772.0,0.02110062]
[1727852908759,0.00334521,61773.0,61772.0,0.15060862]
[1727852910248,0.02872079,61773.0,61772.0,0.15060862]
[1727852913309,0.028424,61773.0,61772.0,0.15060862]
[1727852915842,0.04533946,61773.0,61772.0,0.15060862]
[1727852917565,0.04533946,61773.0,61772.0,0.02110062]
[1727852918886,0.028424,61773.0,61772.0,0.02110062]
[1727852919319,0.028424,61773.0,61772.0,0.15060862]
[1727852920482,0.028424,61773.0,61772.0,0.02110062]
[1727852920933,0.028424,61773.0,61772.0,0.15060862]
[1727852922962,0.028424,61773.0,61772.0,0.15142862]
[1727852924529,0.028424,61773.0,61772.0,0.5033636]
[1727852925637,0.028424,61773.0,61772.0,0.15142862]
[1727852928230,0.028424,61773.0,61772.0,0.3011636]
[1727852928684,0.028424,61773.0,61772.0,0.15142862]
[1727852928899,0.15793,61773.0,61772.0,0.02192062]
[1727852929106,0.028424,61773.0,61772.0,0.02192062]
[1727852929375,0.15793,61773.0,61772.0,0.02192062]
[1727852929817,0.028424,61773.0,61772.0,0.02192062]
[1727852930033,0.028424,61773.0,61772.0,0.137328]
[1727852930244,0.028424,61773.0,61772.0,0.01958329]
[1727852930931,0.40362445,61773.0,61772.0,0.01758329]
[1727852931149,0.64979185,61773.0,61772.0,0.01758329]
[1727852931360,0.64979185,61773.0,61772.0,0.00582]
[1727852932433,0.64933181,61773.0,61772.0,0.00582]
[1727852933071,0.64932438,61773.0,61772.0,0.00582]
[1727852934191,0.67470267,61773.0,61772.0,0.00582]
[1727852934620,0.69161813,61773.0,61772.0,0.00582]
[1727852936397,0.67470267,61773.0,61772.0,0.00582]
[1727852937475,0.49732716,61773.0,61772.0,0.00582]
[1727852937714,0.67473612,61773.0,61772.0,0.00582]
[1727852939523,0.8244711,61773.0,61772.0,0.00582]
[1727852939725,1.30396592,61773.0,61772.0,0.00582]
[1727852939933,1.14717096,61773.0,61772.0,0.00582]
[1727852940161,1.31110882,61773.0,61772.0,0.00582]
[1727852940371,1.31010752,61773.0,61772.0,0.00382]
[1727852940583,1.31110921,61773.0,61772.0,0.00082]
[1727852940789,1.14717096,61773.0,61772.0,0.00082]
[1727852941024,1.31110921,61773.0,61772.0,0.00082]
[1727852941250,1.14717096,61773.0,61772.0,0.00082]
[1727852941961,1.15917096,61773.0,61772.0,0.00082]
[1727852942220,1.15717096,61773.0,61772.0,0.00082]
[1727852942447,1.16717096,61773.0,61772.0,0.00082]
[1727852942909,1.19255243,61773.0,61772.0,0.00082]
[1727852946206,1.09002054,61773.0,61772.0,0.00082]
[1727852946425,1.34007406,61773.0,61772.0,0.00082]
[1727852946635,1.09002149,61773.0,61772.0,0.00082]
[1727852947069,0.94447428,61773.0,61772.0,0.00082]
[1727852947567,0.94028651,61773.0,61772.0,0.00082]
[1727852947817,0.6200393,61773.0,61772.0,0.00082]
[1727852948061,0.74130691,61773.0,61772.0,0.00082]
[1727852948327,0.49465783,61773.0,61772.0,0.00082]
[1727852948590,0.61592544,61773.0,61772.0,0.00082]
[1727852948854,0.49465783,61773.0,61772.0,0.00082]
[1727852950284,0.61592331,61773.0,61772.0,0.00082]
[1727852950899,0.49465783,61773.0,61772.0,0.00082]
[1727852951105,0.52003838,61773.0,61772.0,0.00082]
[1727852952365,0.91162968,61773.0,61772.0,0.00082]
[1727852952588,1.1415554,61773.0,61772.0,0.00082]
[1727852953231,1.15847086,61773.0,61772.0,3.69e-06]
[1727852953655,1.18474232,61773.0,61772.0,3.69e-06]
[1727852955694,0.93818537,61773.0,61772.0,3.69e-06]
[1727852955904,0.83338449,61773.0,61772.0,3.69e-06]
[1727852956113,0.68787329,61773.0,61772.0,3.69e-06]
[1727852956322,0.83338449,61773.0,61772.0,3.69e-06]
[1727852956797,0.68787329,61773.0,61772.0,3.69e-06]
[1727852957011,0.53695537,61773.0,61772.0,3.69e-06]
[1727852957219,0.51157329,61773.0,61772.0,3.69e-06]
[1727852957648,0.63282,61773.0,61772.0,3.69e-06]
[1727852957854,0.51157329,61773.0,61772.0,3.69e-06]
[1727852958899,0.6328246,61773.0,61772.0,3.69e-06]
[1727852959304,0.51157329,61773.0,61772.0,3.69e-06]
[1727852959513,0.63282692,61773.0,61772.0,3.69e-06]
[1727852959922,0.53695356,61773.0,61772.0,3.69e-06]
[1727852960333,0.5200381,61773.0,61772.0,3.69e-06]
[1727852960746,0.64129594,61773.0,61772.0,3.69e-06]
[1727852961155,0.64099915,61773.0,61772.0,3.69e-06]
[1727852961365,0.51974131,61773.0,61772.0,3.69e-06]
[1727852961990,0.6410043,61773.0,61772.0,3.69e-06]
[1727852962398,0.61562403,61773.0,61772.0,3.69e-06]
[1727852962636,0.49436104,61773.0,61772.0,3.69e-06]
[1727852962853,0.31695208,61773.0,61772.0,3.69e-06]
[1727852963065,0.38970946,61773.0,61772.0,3.69e-06]
[1727852963482,0.22501501,61773.0,61772.0,3.69e-06]
[1727852963696,0.20076414,61773.0,61772.0,3.69e-06]
[1727852964120,0.20076414,61773.0,61772.0,0.0080119]
[1727852964547,0.15225763,61773.0,61772.0,0.0080119]
[1727852964760,0.22501501,61773.0,61772.0,0.0080119]
[1727852965188,0.22501501,61773.0,61772.0,3.69e-06]
[1727852965407,0.15225763,61773.0,61772.0,3.69e-06]
[1727852965615,0.15196084,61773.0,61772.0,0.0080119]
[1727852965825,0.17733933,61773.0,61772.0,0.0080119]
[1727852967150,0.17733933,61773.0,61772.0,3.69e-06]
[1727852967373,0.88554913,61773.0,61772.0,3.69e-06]
[1727852967592,0.60382591,61773.0,61772.0,3.69e-06]
[1727852968046,0.60334595,61773.0,61772.0,3.69e-06]
[1727852969535,0.60304916,61773.0,61772.0,3.69e-06]
[1727852969750,0.51555254,61773.0,61772.0,3.69e-06]
[1727852969967,0.49017405,61773.0,61772.0,3.69e-06]
[1727852971063,0.635745,61773.0,61772.0,3.69e-06]
[1727852971273,0.49017405,61773.0,61772.0,3.69e-06]
[1727852971481,0.635745,61773.0,61772.0,3.69e-06]
[1727852971696,0.49017405,61773.0,61772.0,3.69e-06]
[1727852972559,0.44685144,61773.0,61772.0,3.69e-06]
[1727852972793,0.44685144,61773.0,61772.0,0.13151169]
[1727852972794,0.09108431,61773.0,61772.0,0.13151169]
[1727852973035,0.04254004,61773.0,61772.0,0.25696147]
[1727852973245,0.04254004,61773.0,61772.0,0.26019864]
[1727852973457,0.03254004,61773.0,61772.0,0.26019864]
[1727852973889,0.03537861,61773.0,61772.0,0.26019864]
[1727852974123,0.011,61773.0,61772.0,0.26919864]
[1727852974349,0.001,61773.0,61772.0,0.26919864]
[1727852974555,0.04854427,61784.0,61783.0,0.002]
[1727852974764,0.17802527,61785.0,61784.0,0.002]
[1727852975422,0.04850959,61785.0,61783.0,0.002]
[1727852975675,0.04850959,61785.0,61781.0,0.002]
[1727852975900,0.129487,61782.0,61781.0,0.002]
[1727852976140,0.17799459,61784.0,61783.0,0.002]
[1727852976385,0.129485,61784.0,61783.0,0.002]
[1727852976619,0.129485,61784.0,61783.0,0.00994978]
[1727852976844,0.129485,61784.0,61783.0,0.002]
[1727852977084,0.40612068,61784.0,61783.0,0.00777253]
[1727852977297,0.258997,61777.0,61773.0,0.002]
[1727852977480,0.129502,61775.0,61773.0,0.002]
[1727852977940,0.129504,61774.0,61773.0,0.002]
[1727852978364,0.1295,61776.0,61775.0,0.002]
[1727852980141,0.129496,61778.0,61777.0,0.002]
[1727852980822,0.02537471,61778.0,61777.0,0.002]
[1727852981633,0.02537471,61778.0,61777.0,0.006]
[1727852982275,0.02537471,61778.0,61777.0,0.01]
[1727852983103,0.02537471,61778.0,61777.0,0.139498]
[1727852985055,0.02537471,61778.0,61777.0,0.24863514]
[1727852985272,0.02537471,61778.0,61777.0,0.34353514]
[1727852985506,0.02537471,61778.0,61777.0,0.50499245]
[1727852986150,0.02537471,61778.0,61777.0,0.60499245]
[1727852986367,0.02537471,61778.0,61777.0,0.60582517]
[1727852986579,0.02537471,61778.0,61777.0,0.60182517]
[1727852986800,0.02537471,61778.0,61777.0,0.60582517]
[1727852987048,0.02537471,61778.0,61777.0,0.60182517]
[1727852987485,0.02637471,61778.0,61777.0,0.61082517]
[1727852987906,0.02637471,61778.0,61777.0,0.61482517]
[1727852988608,0.001,61778.0,61777.0,0.61482517]
[1727852988813,0.001,61778.0,61777.0,0.61082517]
[1727852989224,0.002,61778.0,61777.0,0.62182517]
[1727852989844,0.002,61778.0,61777.0,0.62945845]
[1727852992370,0.00364,61778.0,61777.0,0.62945845]
[1727852995314,0.00364,61778.0,61777.0,0.464764]
[1727852995557,0.00364,61778.0,61777.0,0.02963328]
[1727852995787,0.15850632,61778.0,61777.0,0.02963328]
[1727852996038,0.02901132,61778.0,61777.0,0.02963328]
[1727852996488,0.15850632,61778.0,61777.0,0.02963328]
[1727852996669,0.02901132,61778.0,61777.0,0.02963328]
[1727852997944,0.15850632,61778.0,61777.0,0.02763328]
[1727852998990,0.15750632,61778.0,61777.0,0.01663328]
[1727852999198,0.15750632,61778.0,61777.0,0.00763328]
[1727852999199,0.15650632,61778.0,61777.0,0.00763328]
[1727852999623,0.15750632,61778.0,61777.0,0.009]
[1727852999835,0.15750632,61778.0,61777.0,0.01447087]
[1727853000036,0.15750632,61778.0,61777.0,0.007]
[1727853000647,0.15750632,61778.0,61777.0,0.009]
[1727853000881,0.15850632,61778.0,61777.0,0.016]
[1727853001927,0.15850632,61778.0,61777.0,0.014]
[1727853002544,0.133135,61778.0,61777.0,0.014]
[1727853002920,0.15851029,61778.0,61777.0,0.014]
[1727853003790,0.15851029,61778.0,61777.0,0.016]
[1727853007469,0.15851029,61778.0,61777.0,0.02361441]
[1727853008710,0.15851029,61778.0,61777.0,0.016]
[1727853010324,0.02901529,61778.0,61777.0,0.168498]
[1727853010537,0.00364,61778.0,61777.0,0.52809245]
[1727853010755,0.00364,61778.0,61777.0,0.62560686]
[1727853010979,0.00164,61784.0,61780.0,0.004]
[1727853011200,0.00164,61784.0,61783.0,0.58444195]
[1727853011420,0.00164,61784.0,61783.0,0.7491364]
[1727853011631,0.00164,61784.0,61783.0,0.75675081]
[1727853012062,0.00164,61784.0,61783.0,0.76175081]
[1727853013336,0.00264,61784.0,61783.0,0.77575081]
[1727853013550,0.00364,61784.0,61783.0,0.78975081]
[1727853013762,0.00364,61784.0,61783.0,0.77575081]
[1727853013763,0.00264,61784.0,61783.0,0.77575081]
[1727853013997,0.00264,61784.0,61783.0,0.78975081]
[1727853014220,0.00164,61784.0,61783.0,0.76175081]
[1727853014442,0.02700654,61784.0,61783.0,0.77575081]
[1727853015746,0.02800654,61784.0,61783.0,0.77575081]
[1727853015967,0.02700654,61784.0,61783.0,0.76175081]
[1727853016178,0.02800654,61784.0,61783.0,0.77575081]
[1727853016386,0.02900654,61784.0,61783.0,0.78975081]
[1727853016786,0.02800654,61784.0,61783.0,0.77575081]
[1727853017024,0.02900654,61784.0,61783.0,0.78975081]
[1727853019654,0.02870828,61784.0,61783.0,0.78975081]
[1727853023902,0.24296023,61796.0,61795.0,0.30461695]
[1727853024134,0.24296023,61796.0,61795.0,0.5501114]
[1727853024378,0.24296023,61796.0,61795.0,0.55737253]
[1727853024596,0.00164,61803.0,61802.0,0.131445]
[1727853024821,0.00164,61803.0,61802.0,0.153145]
[1727853025055,0.00164,61803.0,61802.0,0.16024335]
[1727853026294,0.08424,61803.0,61802.0,0.00709835]
[1727853026565,0.213683,61803.0,61802.0,0.00709835]
[1727853026784,0.129449,61800.0,61799.0,0.0007]
[1727853026995,0.258893,61802.0,61799.0,0.0007]
[1727853026996,0.129446,61802.0,61799.0,0.0007]
[1727853027209,0.129446,61802.0,61799.0,0.00776018]
[1727853027432,0.129448,61801.0,61799.0,0.0007]
[1727853027646,0.129445,61802.0,61800.0,0.00706018]
[1727853027877,0.10960518,61803.0,61800.0,0.00706018]
[1727853028106,0.02700518,61803.0,61802.0,0.0007]
[1727853028324,0.00164,61803.0,61802.0,0.0007]
[1727853028963,0.00164,61803.0,61802.0,0.13725034]
[1727853029170,0.00164,61803.0,61802.0,0.00780534]
[1727853030609,0.131083,61803.0,61802.0,0.00780534]
[1727853031030,0.131083,61803.0,61802.0,0.00710534]
[1727853031457,0.260528,61803.0,61800.0,0.0007]
[1727853031666,0.260528,61803.0,61799.0,0.0007]
[1727853031667,0.129449,61800.0,61799.0,0.0007]
[1727853032092,0.129456,61797.0,61796.0,0.0007]
[1727853033430,0.130456,61797.0,61796.0,0.012]
[1727853033657,0.37715045,61797.0,61796.0,0.012]
[1727853034122,0.47045045,61797.0,61796.0,0.012]
[1727853034346,0.46945045,61797.0,61796.0,0.006]
[1727853035411,0.129472,61789.0,61788.0,0.0007]
[1727853035651,0.129474,61788.0,61787.0,0.0007]
[1727853036077,0.15484512,61788.0,61787.0,0.0007]
[1727853037348,0.15584512,61788.0,61787.0,0.0007]
[1727853038617,0.15684512,61788.0,61787.0,0.0007]
[1727853039280,0.129481,61785.0,61784.0,0.0007]
[1727853040564,0.129481,61785.0,61784.0,0.0027]
[1727853041388,0.129481,61785.0,61784.0,0.002]
[1727853041660,0.129481,61785.0,61784.0,0.0047]
[1727853042298,0.129481,61785.0,61784.0,0.01964644]
[1727853042506,0.129481,61785.0,61784.0,0.004]
[1727853042507,0.211481,61785.0,61784.0,0.004]
[1727853042944,0.129481,61785.0,61784.0,0.004]
[1727853043575,0.129481,61785.0,61784.0,0.0047]
[1727853044265,0.129481,61785.0,61784.0,0.004]
[1727853044698,0.129481,61785.0,61784.0,0.0047]
[1727853046404,0.46677545,61785.0,61784.0,0.004]
[1727853048391,0.129493,61779.0,61778.0,0.00082]
[1727853049781,0.15486894,61779.0,61778.0,0.00082]
[1727853050247,0.15886894,61779.0,61778.0,0.00082]
[1727853050693,0.32356339,61779.0,61778.0,0.00082]
[1727853051752,0.40126339,61779.0,61778.0,0.00082]
[1727853054361,0.32356339,61779.0,61778.0,0.00082]
[1727853055907,0.02937594,61779.0,61778.0,0.00082]
[1727853056110,0.15886894,61779.0,61778.0,0.00082]
[1727853056313,0.15886894,61779.0,61778.0,0.01412031]
[1727853056523,0.15886894,61779.0,61778.0,0.00082]
[1727853056726,0.15886894,61779.0,61778.0,0.01412031]
[1727853056941,0.15886894,61779.0,61778.0,0.00082]
[1727853057166,0.15886894,61779.0,61778.0,0.01412031]
[1727853057585,0.15886894,61779.0,61778.0,0.00082]
[1727853058528,0.41819949,61779.0,61778.0,0.00082]
[1727853060039,0.39282355,61779.0,61778.0,0.00082]
[1727853063608,0.4182016,61779.0,61778.0,0.00082]
[1727853064468,0.39282355,61779.0,61778.0,0.00082]
[1727853066893,0.46657088,61779.0,61778.0,0.00082]
[1727853067947,0.56657088,61779.0,61778.0,0.00082]
[1727853068167,0.59075536,61779.0,61778.0,0.00082]
[1727853068855,0.58875536,61779.0,61778.0,0.00082]
[1727853069068,0.58675536,61779.0,61778.0,0.00082]
[1727853069320,0.52220191,61779.0,61778.0,0.00182]
[1727853069534,0.60175743,61779.0,61778.0,0.00282]
[1727853069771,0.52920191,61779.0,61778.0,0.00282]
[1727853069984,0.60175743,61779.0,61778.0,0.00282]
[1727853070400,0.60176917,61779.0,61778.0,0.00282]
[1727853070813,0.52920191,61779.0,61778.0,0.00282]
[1727853071454,0.80482053,61779.0,61778.0,0.00282]
[1727853071671,0.87060866,61779.0,61778.0,0.00282]
[1727853072101,0.80482053,61779.0,61778.0,0.00282]
[1727853072949,0.78788443,61779.0,61778.0,0.00282]
[1727853074545,0.69114374,61779.0,61778.0,0.00282]
[1727853075413,0.8120696,61779.0,61778.0,0.00282]
[1727853076316,0.69114374,61779.0,61778.0,0.00282]
[1727853076792,0.83468722,61779.0,61778.0,4.61e-06]
[1727853077016,0.402904,61774.0,61773.0,0.00082]
[1727853077249,0.89663333,61774.0,61773.0,0.00082]
[1727853078169,1.06012746,61774.0,61773.0,0.00082]
[1727853078412,1.05882746,61774.0,61773.0,0.00082]
[1727853078630,0.89860023,61774.0,61773.0,0.00082]
[1727853078865,0.57307638,61774.0,61773.0,0.00082]
[1727853079102,0.47307638,61774.0,61773.0,0.00082]
[1727853080269,0.57307638,61774.0,61773.0,0.00082]
[1727853080479,0.59845726,61774.0,61773.0,0.00082]
[1727853080688,0.61245726,61774.0,61773.0,0.00082]
[1727853080894,0.62445726,61774.0,61773.0,0.00182]
[1727853081118,0.61045726,61774.0,61773.0,0.00182]
[1727853082265,0.73154812,61774.0,61773.0,0.00182]
[1727853082493,0.74154812,61774.0,61773.0,0.00182]
[1727853082920,0.74403574,61774.0,61773.0,0.00182]
[1727853084458,0.62290111,61774.0,61773.0,0.00182]
[1727853087850,0.62307844,61774.0,61773.0,0.00182]
[1727853088492,0.64001454,61774.0,61773.0,0.00182]
[1727853092166,0.64009698,61774.0,61773.0,0.00182]
[1727853092377,0.78569009,61774.0,61773.0,0.00182]
[1727853095650,0.78586373,61774.0,61773.0,0.00182]
[1727853096303,0.64021299,61774.0,61773.0,0.00182]
[1727853098477,0.64151299,61774.0,61773.0,0.00182]
[1727853098688,0.80537007,61774.0,61773.0,0.00182]
[1727853098910,0.80537007,61774.0,61760.0,0.000821]
[1727853098911,0.129527,61763.0,61762.0,0.24296023]
[1727853099126,0.5198784,61763.0,61762.0,0.24296023]
[1727853099341,0.5198784,61763.0,61760.0,0.000821]
[1727853099342,0.129531,61761.0,61760.0,0.000821]
[1727853099579,0.47592301,61761.0,61760.0,0.000821]
[1727853099787,0.6216248,61761.0,61760.0,0.000821]
[1727853100665,0.47592301,61761.0,61760.0,0.000821]
[1727853101077,0.47592301,61761.0,61760.0,0.001821]
[1727853101283,0.47466094,61761.0,61760.0,0.001821]
[1727853102412,0.5000457,61761.0,61760.0,0.001821]
[1727853105483,0.20582025,61761.0,61760.0,0.170421]
[1727853105695,0.25201451,61761.0,61760.0,0.18263774]
[1727853105902,0.22773878,61761.0,61760.0,0.18263774]
[1727853106318,0.43314606,61761.0,61760.0,0.18193774]
[1727853106525,0.4077613,61761.0,61760.0,0.18193774]
[1727853106731,0.43314467,61761.0,61760.0,0.18193774]
[1727853107149,0.45741901,61761.0,61760.0,0.10553774]
[1727853107359,0.45741901,61761.0,61760.0,0.094021]
[1727853107360,0.33604731,61761.0,61760.0,0.094021]
[1727853107766,0.50074176,61761.0,61760.0,0.001821]
[1727853109696,0.50074176,61761.0,61760.0,0.078221]
[1727853109697,0.43315007,61761.0,61760.0,0.078221]
[1727853110132,0.22773981,61761.0,61760.0,0.08972113]
[1727853110352,0.09820881,61761.0,61760.0,0.194121]
[1727853110561,0.02538337,61761.0,61760.0,0.194121]
[1727853110805,0.02538337,61761.0,61760.0,0.33515413]
[1727853111021,0.17807589,61763.0,61762.0,0.0007]
[1727853111228,0.04854889,61763.0,61762.0,0.0007]
[1727853111679,0.17807589,61763.0,61762.0,0.0007]
[1727853111888,0.17807589,61763.0,61762.0,0.03520013]
[1727853112112,0.04854889,61763.0,61762.0,0.03520013]
[1727853113136,0.17807589,61763.0,61762.0,0.01150013]
[1727853113348,0.129527,61763.0,61762.0,0.03450013]
[1727853113557,0.129527,61763.0,61762.0,0.023]
[1727853113764,0.129527,61763.0,61762.0,0.0007]
[1727853113765,0.389582,61763.0,61762.0,0.0007]
[1727853113970,0.41496431,61763.0,61762.0,0.0007]
[1727853114419,0.129531,61761.0,61760.0,0.169421]
[1727853114713,0.40805027,61761.0,61760.0,0.000821]
[1727853114925,0.43230992,61761.0,61760.0,0.000821]
[1727853115148,0.43197706,61761.0,61760.0,0.000821]
[1727853115363,0.31056353,61761.0,61760.0,0.000821]
[1727853115571,0.46370069,61761.0,61760.0,0.000821]
[1727853115789,0.71821821,61761.0,61760.0,0.000821]
[1727853116027,0.47525798,61761.0,61760.0,0.000821]
[1727853117096,0.47525798,61761.0,61760.0,0.001821]
[1727853118637,0.50064257,61761.0,61760.0,0.001821]
[1727853118843,0.47525798,61761.0,61760.0,0.001821]
[1727853119072,0.62095422,61761.0,61760.0,0.001821]
[1727853119581,0.62052196,61761.0,61760.0,0.001821]
[1727853119814,0.80315115,61761.0,61760.0,0.001821]
[1727853120330,0.81423492,61761.0,61760.0,0.001821]
[1727853120618,1.06706777,61761.0,61760.0,0.001821]
[1727853120855,1.06808163,61761.0,61760.0,0.000821]
[1727853121088,1.17163297,61761.0,61760.0,0.001821]
[1727853121351,1.17293297,61761.0,61760.0,0.001821]
[1727853121609,1.17293297,61761.0,61753.0,0.000821]
[1727853121610,0.54680295,61754.0,61753.0,0.000821]
[1727853121869,0.89339025,61754.0,61753.0,0.000821]
[1727853122328,1.05594609,61754.0,61753.0,0.000821]
[1727853122541,1.1449231,61754.0,61753.0,0.000821]
[1727853122796,1.30878453,61754.0,61753.0,0.000821]
[1727853123011,1.08134279,61754.0,61753.0,0.000821]
[1727853123235,0.91748136,61754.0,61753.0,0.000821]
[1727853123454,1.08134279,61754.0,61753.0,0.000821]
[1727853123715,1.09434279,61754.0,61753.0,0.000821]
[1727853123937,0.93048136,61754.0,61753.0,0.000821]
[1727853124175,1.36017564,61754.0,61753.0,0.000821]
[1727853124407,1.19631421,61754.0,61753.0,0.000821]
[1727853124670,1.36119603,61754.0,61753.0,0.000821]
[1727853124923,1.36249603,61754.0,61753.0,0.000821]
[1727853125861,1.37943213,61754.0,61753.0,0.000821]
[1727853126082,1.54329356,61754.0,61753.0,0.000821]
[1727853126300,1.54329356,61754.0,61747.0,0.00082]
[1727853126301,0.54811295,61749.0,61747.0,0.00082]
[1727853126503,0.89340025,61749.0,61747.0,0.00082]
[1727853126713,1.1462331,61749.0,61747.0,0.00082]
[1727853126922,1.31111492,61749.0,61747.0,0.00082]
[1727853127170,0.230858,61748.0,61747.0,0.00082]
[1727853127383,0.99607815,61748.0,61747.0,0.00082]
[1727853127608,0.99607815,61748.0,61738.0,0.00082]
[1727853127609,0.54812795,61742.0,61738.0,0.00082]
[1727853127829,0.89341525,61742.0,61738.0,0.00082]
[1727853128230,1.27032708,61742.0,61738.0,0.00082]
[1727853129139,1.32733317,61742.0,61738.0,0.00082]
[1727853129351,1.27032708,61742.0,61738.0,0.00082]
[1727853129535,1.30972358,61742.0,61738.0,0.00082]
[1727853130253,1.2021137,61742.0,61738.0,0.00082]
[1727853130671,1.07089073,61742.0,61738.0,0.00082]
[1727853130926,1.05689073,61742.0,61738.0,0.00082]
[1727853131135,0.94681175,61742.0,61738.0,0.00082]
[1727853131603,0.229577,61739.0,61738.0,6.14e-06]
[1727853131822,0.69280046,61739.0,61738.0,6.14e-06]
[1727853132658,0.81478653,61739.0,61738.0,6.14e-06]
[1727853132866,0.5718263,61739.0,61738.0,6.14e-06]
[1727853133075,0.81846777,61739.0,61738.0,6.14e-06]
[1727853133282,0.81844595,61739.0,61738.0,6.14e-06]
[1727853133491,0.81974595,61739.0,61738.0,6.14e-06]
[1727853133702,0.68255506,61739.0,61738.0,6.14e-06]
[1727853134126,0.69655506,61739.0,61738.0,6.14e-06]
[1727853134345,0.42227145,61739.0,61738.0,6.14e-06]
[1727853134560,0.42357145,61739.0,61738.0,6.14e-06]
[1727853134770,0.66098347,61739.0,61738.0,6.14e-06]
[1727853135185,0.58715327,61739.0,61738.0,6.14e-06]
[1727853135395,0.65967207,61739.0,61738.0,6.14e-06]
[1727853135607,0.58845327,61739.0,61738.0,6.14e-06]
[1727853135817,0.49609025,61739.0,61738.0,6.14e-06]
[1727853136031,0.69656173,61739.0,61738.0,6.14e-06]
[1727853136244,0.64493552,61739.0,61738.0,6.14e-06]
[1727853136456,0.5724284,61739.0,61738.0,6.14e-06]
[1727853136670,0.64493552,61739.0,61738.0,6.14e-06]
[1727853136881,0.5724284,61739.0,61738.0,6.14e-06]
[1727853137091,0.6207656,61739.0,61738.0,6.14e-06]
[1727853137309,0.47060289,61739.0,61738.0,6.14e-06]
[1727853137517,0.42227145,61739.0,61738.0,6.14e-06]
[1727853137796,0.5724284,61739.0,61738.0,6.14e-06]
[1727853138216,0.5584284,61739.0,61738.0,6.14e-06]
[1727853138438,0.5444284,61739.0,61738.0,6.14e-06]
[1727853138865,0.5584284,61739.0,61738.0,6.14e-06]
[1727853139727,0.5724284,61739.0,61738.0,6.14e-06]
[1727853140146,0.5444284,61739.0,61738.0,6.14e-06]
[1727853140770,0.5968241,61739.0,61738.0,6.14e-06]
[1727853141671,0.5698241,61739.0,61738.0,6.14e-06]
[1727853142055,0.5444284,61739.0,61738.0,6.14e-06]
[1727853142498,0.5584284,61739.0,61738.0,6.14e-06]
[1727853143359,0.40827145,61739.0,61738.0,6.14e-06]
[1727853143771,0.42127145,61739.0,61738.0,6.14e-06]
[1727853144195,0.40827145,61739.0,61738.0,6.14e-06]
[1727853144407,0.30827145,61739.0,61738.0,6.14e-06]
[1727853144617,0.32127145,61739.0,61738.0,6.14e-06]
[1727853144833,0.156577,61739.0,61738.0,0.09080614]
[1727853145044,0.156577,61739.0,61738.0,0.17040614]
[1727853145299,0.18197073,61739.0,61738.0,0.17040614]
[1727853145507,0.18197073,61739.0,61738.0,0.20568686]
[1727853145719,0.57562541,61739.0,61738.0,0.18268686]
[1727853145931,0.33266518,61739.0,61738.0,0.01228686]
[1727853146167,0.46035837,61739.0,61738.0,6.14e-06]
[1727853146382,0.44735837,61739.0,61738.0,6.14e-06]
[1727853147209,0.44135837,61739.0,61738.0,6.14e-06]
[1727853147411,0.31966518,61739.0,61738.0,6.14e-06]
[1727853148059,0.32766518,61739.0,61738.0,6.14e-06]
[1727853148269,0.33266518,61739.0,61738.0,6.14e-06]
[1727853148681,0.32766518,61739.0,61738.0,6.14e-06]
[1727853149113,0.34166518,61739.0,61738.0,6.14e-06]
[1727853149527,0.32766518,61739.0,61738.0,6.14e-06]
[1727853149731,0.33966518,61739.0,61738.0,6.14e-06]
[1727853150762,0.33166518,61739.0,61738.0,6.14e-06]
[1727853151377,0.34566518,61739.0,61738.0,6.14e-06]
[1727853151981,0.33166518,61739.0,61738.0,6.14e-06]
[1727853152385,0.30627145,61739.0,61738.0,6.14e-06]
[1727853153253,0.31727145,61739.0,61738.0,6.14e-06]
[1727853157496,0.36565363,61739.0,61738.0,6.14e-06]
[1727853158121,0.36568698,61739.0,61738.0,6.14e-06]
[1727853158530,0.38984472,61739.0,61738.0,6.14e-06]